bitfinex/quotes_SOLUSD_20250819
["timestamp","ask_amount","ask_price","bid_price","bid_amount"]
[1755614300941,55.85001894,180.27,180.22,11.01001894]
[1755614301184,11.01001894,180.23,180.2,11.010019]
[1755614301369,26.7,180.26,180.2,11.010019]
[1755614301545,11.01001894,180.22,180.2,11.010019]
[1755614301948,11.01001894,180.23,180.19,0.06]
[1755614302678,11.01001894,180.23,180.19,0.78]
[1755614303378,11.01001894,180.23,180.19,0.06]
[1755614303559,11.71001894,180.22,180.19,0.06]
[1755614303940,0.7,180.21,180.19,0.06]
[1755614304170,81.83001894,180.2,180.19,0.06]
[1755614304346,70.82,180.2,180.19,0.06]
[1755614304545,81.83001894,180.2,180.19,0.06]
[1755614305361,55.83001894,180.2,180.19,0.06]
[1755614305854,56.53001894,180.2,180.19,0.06]
[1755614306288,55.81001894,180.2,180.19,0.06]
[1755614306780,44.8,180.24,180.19,11.79001894]
[1755614307086,11.04001894,180.25,180.19,11.79001894]
[1755614307087,0.03,180.25,180.22,11.01001894]
[1755614307384,11.01001894,180.24,180.19,0.06]
[1755614307550,11.01001894,180.24,180.19,11.07001894]
[1755614307878,11.01001894,180.24,180.19,11.79001894]
[1755614308084,0.03,180.25,180.19,0.78]
[1755614308284,0.03,180.25,180.19,0.06]
[1755614308588,11.01001894,180.2,180.19,0.06]
[1755614308895,37.71001894,180.2,180.19,0.06]
[1755614309381,26.0,180.2,180.19,0.06]
[1755614309571,37.01001894,180.2,180.19,0.06]
[1755614310154,37.71001894,180.2,180.19,0.06]
[1755614311387,39.59559401,180.18,180.17,0.06]
[1755614311552,95.36561295,180.18,180.17,0.06]
[1755614311751,70.06561295,180.18,180.17,0.06]
[1755614312571,81.07563189,180.18,180.17,0.06]
[1755614312885,50.60561295,180.16,180.15,0.06]
[1755614313391,51.26561295,180.16,180.15,0.06]
[1755614314193,40.25559401,180.16,180.15,0.06]
[1755614314371,37.01001894,180.16,180.15,0.06]
[1755614314696,37.67001894,180.16,180.15,0.06]
[1755614316880,26.0,180.14,180.13,0.06]
[1755614317106,95.34561295,180.14,180.03,0.71]
[1755614317286,11.01001894,180.06,180.03,0.71]
[1755614317596,55.73001894,180.08,180.03,11.72001894]
[1755614317819,11.01001894,180.06,180.04,0.71]
[1755614317963,11.01001894,180.05,180.01,0.71]
[1755614318169,11.01001894,180.06,180.01,11.72001894]
[1755614318500,11.01001894,180.05,180.02,0.71]
[1755614318675,11.01001894,180.05,179.98,0.06]
[1755614318868,26.0,180.07,179.98,0.06]
[1755614318869,37.01001894,180.07,180.03,0.71]
[1755614319072,44.72,180.08,180.04,0.71]
[1755614319289,44.72,180.08,180.05,0.71]
[1755614319480,0.66,180.16,180.07,11.01001894]
[1755614319679,11.01001894,180.13,180.08,11.72001894]
[1755614319882,11.01001894,180.09,180.06,0.71]
[1755614320179,11.01001894,180.08,180.06,0.71]
[1755614320383,11.01001894,180.08,180.03,0.71]
[1755614320384,17.29258827,180.08,180.03,0.71]
[1755614320594,17.29258827,180.06,180.03,0.71]
[1755614320889,44.7,180.09,180.04,0.71]
[1755614321096,44.7,180.09,180.05,0.71]
[1755614321397,61.99258827,180.09,180.06,0.71]
[1755614321772,44.7,180.09,180.07,18.00258827]
[1755614321990,44.7,180.12,180.08,18.00258827]
[1755614322176,44.7,180.12,180.09,18.00258827]
[1755614322377,44.7,180.12,180.11,17.29258827]
[1755614322578,44.7,180.15,180.11,0.71]
[1755614322777,44.7,180.15,180.1,17.29258827]
[1755614323098,17.29258827,180.12,180.07,0.71]
[1755614323273,17.29258827,180.12,180.07,18.00258827]
[1755614323474,17.29258827,180.13,180.07,17.29258827]
[1755614323798,17.29258827,180.1,180.05,43.29258827]
[1755614323971,17.29258827,180.1,180.05,44.00258827]
[1755614324174,17.29258827,180.11,180.06,18.00258827]
[1755614324372,44.68,180.12,180.06,18.00258827]
[1755614324577,61.97258827,180.12,180.06,17.29258827]
[1755614325073,17.29258827,180.1,180.05,18.00258827]
[1755614325287,17.29258827,180.1,180.06,0.71]
[1755614325572,17.29258827,180.07,180.03,17.406813]
[1755614325801,17.29258827,180.05,180.0,0.71]
[1755614326105,61.97258827,180.04,179.99,17.35258827]
[1755614326309,17.29258827,180.03,179.99,0.77]
[1755614328289,44.68,180.04,180.01,17.29258827]
[1755614328494,44.68,180.04,180.02,0.71]
[1755614329178,44.68,180.04,180.03,0.71]
[1755614329374,26.0,180.09,180.03,18.00258827]
[1755614329575,44.64,180.08,180.04,17.29258827]
[1755614329792,17.29258827,180.07,180.0,6.26551072]
[1755614329982,17.29258827,180.07,180.02,17.29258827]
[1755614330191,17.29258827,180.07,179.99,84.81580525]
[1755614330507,17.29258827,180.03,179.99,0.06]
[1755614330892,17.29258827,180.02,179.99,0.06]
[1755614331200,17.29258827,180.0,179.99,0.06]
[1755614331405,61.93258827,180.0,179.99,0.06]
[1755614331607,76.18818228,180.0,179.99,0.06]
[1755614331902,62.59258827,180.0,179.99,0.06]
[1755614334287,102.18818228,180.0,179.99,0.06]
[1755614335082,84.89559401,180.0,179.88,5.55913859]
[1755614335288,17.29258827,179.95,179.89,17.29258827]
[1755614335502,44.62,179.94,179.88,5.55913859]
[1755614335811,61.91258827,179.94,179.88,17.29258827]
[1755614336191,61.91258827,179.94,179.89,17.29258827]
[1755614336391,61.91258827,179.94,179.85,7.84742149]
[1755614336392,44.62,179.94,179.9,17.29258827]
[1755614336589,17.29258827,179.95,179.9,17.29258827]
[1755614336792,61.91258827,179.95,179.9,17.29258827]
[1755614337092,44.62,179.95,179.91,18.00258827]
[1755614337391,44.62,179.95,179.92,0.71]
[1755614337584,44.62,179.95,179.92,18.00258827]
[1755614337786,44.62,179.97,179.93,0.71]
[1755614338320,61.91258827,179.97,179.92,17.29258827]
[1755614338622,61.91258827,179.97,179.92,0.71]
[1755614338806,44.62,179.97,179.9,5.5585843]
[1755614339114,17.29258827,179.96,179.91,17.29258827]
[1755614339507,44.62,179.97,179.92,18.00258827]
[1755614339708,44.62,179.97,179.94,17.29258827]
[1755614340088,61.91258827,179.97,179.92,17.29258827]
[1755614340317,132.0,180.13,179.96,11.01790145]
[1755614340515,0.66,180.06,179.97,6.26648163]
[1755614340692,11.01790145,180.04,179.97,0.71]
[1755614340889,44.58,180.05,180.0,11.01790145]
[1755614341091,44.58,180.05,180.0,6.01790145]
[1755614341318,44.58,180.05,180.02,11.01790145]
[1755614341621,44.58,180.06,180.01,11.72790145]
[1755614342121,44.58,180.06,180.03,11.01790145]
[1755614342316,11.67790145,180.11,180.05,11.01790145]
[1755614342613,0.03,180.13,179.99,26.0]
[1755614342614,44.58,180.09,180.03,11.01790145]
[1755614342785,11.01790145,180.07,180.02,11.01790145]
[1755614342989,11.01790145,180.07,179.96,13.89197599]
[1755614342990,0.72,180.06,180.01,11.01790145]
[1755614343185,11.01790145,180.08,180.02,0.69]
[1755614343424,11.01790145,180.07,180.01,11.01790145]
[1755614343626,44.58,180.09,180.01,0.69]
[1755614343815,55.59790145,180.09,180.04,11.01790145]
[1755614344200,45.3,180.09,180.05,11.01790145]
[1755614344606,44.58,180.09,180.06,11.01790145]
[1755614345018,44.58,180.09,180.07,11.01790145]
[1755614345340,44.58,180.09,180.05,5.55396464]
[1755614345341,0.03,180.13,180.08,11.70790145]
[1755614345504,0.03,180.13,180.12,11.01790145]
[1755614346137,0.03,180.13,180.12,11.70790145]
[1755614346329,0.03,180.15,180.14,26.0]
[1755614346504,0.03,180.15,180.14,37.01790145]
[1755614347044,0.03,180.15,180.09,32.24277916]
[1755614347338,0.75,180.15,180.1,11.01790145]
[1755614347502,0.75,180.15,180.11,11.01790145]
[1755614347704,0.03,180.15,180.12,11.01790145]
[1755614348041,11.04790145,180.15,180.07,5.55336207]
[1755614348232,11.76790145,180.15,180.09,11.01790145]
[1755614348405,18.02925733,180.15,180.1,17.27925733]
[1755614348735,18.02925733,180.15,180.09,17.27925733]
[1755614349100,0.03,180.15,180.11,17.27925733]
[1755614349412,0.03,180.15,180.14,17.27925733]
[1755614351912,0.03,180.15,180.12,17.27925733]
[1755614352113,17.99925733,180.14,180.07,32.24338811]
[1755614352332,17.99925733,180.14,180.09,17.27925733]
[1755614352517,17.27925733,180.13,180.08,17.27925733]
[1755614352728,17.99925733,180.14,180.09,17.27925733]
[1755614353036,17.27925733,180.11,180.04,19.14984493]
[1755614353338,17.27925733,180.09,180.04,17.27925733]
[1755614353714,0.72,180.08,180.04,17.27925733]
[1755614354038,17.27925733,180.06,180.01,17.27925733]
[1755614354206,17.99925733,180.06,180.01,17.27925733]
[1755614354402,17.27925733,180.04,179.97,17.386814]
[1755614354607,0.72,180.05,180.01,17.27925733]
[1755614354842,17.27925733,180.07,180.02,17.27925733]
[1755614355008,17.99925733,180.07,180.01,17.27925733]
[1755614355623,17.99925733,180.07,180.02,17.27925733]
[1755614356009,44.46,180.08,180.04,17.27925733]
[1755614356245,62.45925733,180.08,180.0,0.69]
[1755614356741,62.45925733,180.08,180.03,17.27925733]
[1755614357045,17.27925733,180.06,180.01,17.27925733]
[1755614357541,0.72,180.06,180.01,17.27925733]
[1755614357743,17.27925733,180.05,180.0,17.27925733]
[1755614358037,0.72,180.04,179.99,17.27925733]
[1755614358337,17.99925733,180.04,179.97,6.24640362]
[1755614358537,0.72,180.03,179.98,17.27925733]
[1755614358705,70.46,180.08,179.95,39.59559401]
[1755614358706,17.99925733,180.02,179.95,26.0]
[1755614358906,17.27925733,180.01,179.96,17.27925733]
[1755614359147,0.72,180.0,179.96,17.27925733]
[1755614359318,44.42,180.03,179.96,17.27925733]
[1755614359319,62.41925733,180.03,179.97,17.27925733]
[1755614359735,62.41925733,180.03,179.98,17.27925733]
[1755614359935,62.41925733,180.03,179.97,17.27925733]
[1755614360324,17.27925733,180.02,179.97,17.27925733]
[1755614360522,17.27925733,180.01,179.95,43.27925733]
[1755614360719,44.42,180.03,179.99,17.27925733]
[1755614361025,17.99925733,180.07,180.02,17.27925733]
[1755614361241,0.72,180.07,180.03,17.27925733]
[1755614361431,17.99925733,180.07,180.0,0.69]
[1755614361614,17.99925733,180.07,179.97,5.55648163]
[1755614361615,0.72,180.06,180.02,17.27925733]
[1755614361817,0.72,180.05,180.02,17.27925733]
[1755614362038,0.72,180.05,180.01,17.27925733]
[1755614362248,0.72,180.05,180.0,17.27925733]
[1755614362438,17.99925733,180.07,180.02,17.27925733]
[1755614362823,17.27925733,180.03,179.96,0.69]
[1755614363018,17.27925733,180.02,179.96,43.96925733]
[1755614363219,0.72,180.05,180.0,17.27925733]
[1755614363450,17.99925733,180.05,180.0,17.27925733]
[1755614363643,0.72,180.04,179.99,17.27925733]
[1755614363963,70.4,180.08,180.02,17.27925733]
[1755614363964,17.99925733,180.07,180.02,17.27925733]
[1755614364320,45.1,180.07,180.0,0.69]
[1755614364658,45.1,180.07,180.03,17.27925733]
[1755614364857,0.03,180.09,180.06,17.27925733]
[1755614365031,0.03,180.09,180.08,17.27925733]
[1755614365443,0.03,180.09,180.05,0.69]
[1755614365624,0.03,180.09,180.08,17.27925733]
[1755614366260,0.03,180.09,180.07,17.27925733]
[1755614366553,0.03,180.09,180.03,0.69]
[1755614366746,0.03,180.09,180.05,17.27925733]
[1755614367058,0.03,180.09,180.01,49.91517998]
[1755614367358,0.72,180.08,180.04,17.27925733]
[1755614367565,17.99925733,180.07,180.02,17.27925733]
[1755614367735,17.99925733,180.06,180.01,26.0]
[1755614367938,17.27925733,180.06,180.01,17.27925733]
[1755614368147,17.27925733,180.04,179.98,17.27925733]
[1755614368338,11.01650224,180.03,179.97,0.75]
[1755614368542,11.01650224,179.98,179.97,0.06]
[1755614368850,0.72,179.98,179.97,0.06]
[1755614369055,11.01650224,180.0,179.97,0.06]
[1755614369232,0.72,180.01,179.97,0.06]
[1755614369432,0.72,180.01,179.97,11.07650224]
[1755614369638,11.73650224,180.0,179.97,0.06]
[1755614369840,11.01650224,179.98,179.97,0.06]
[1755614370048,55.33650224,179.98,179.97,0.06]
[1755614370423,62.35850484,179.98,179.97,0.06]
[1755614372266,0.72,180.02,179.97,17.37850484]
[1755614372561,0.03,180.09,179.98,17.31850484]
[1755614372562,44.32,180.01,179.98,17.31850484]
[1755614372744,61.63850484,180.02,179.97,0.06]
[1755614372938,44.32,180.02,179.98,17.31850484]
[1755614373141,44.32,180.02,179.97,0.06]
[1755614373327,44.98,180.02,179.97,17.37850484]
[1755614373527,44.98,180.02,180.0,17.31850484]
[1755614373528,44.32,180.02,180.0,17.31850484]
[1755614373754,44.32,180.02,179.97,0.06]
[1755614373755,62.29850484,180.02,179.97,0.06]
[1755614374048,17.97850484,180.01,179.97,0.06]
[1755614374440,17.31850484,180.01,179.97,0.06]
[1755614374758,0.66,180.0,179.97,0.06]
[1755614374941,17.31850484,179.98,179.97,0.06]
[1755614375465,17.97850484,179.98,179.97,0.06]
[1755614375662,17.31850484,179.99,179.97,0.06]
[1755614375831,17.31850484,180.0,179.97,0.06]
[1755614376036,44.32,180.02,179.97,17.37850484]
[1755614376371,17.97850484,180.01,179.97,0.06]
[1755614376527,17.31850484,180.0,179.97,0.06]
[1755614376729,17.97850484,180.0,179.97,0.06]
[1755614377185,0.66,180.0,179.97,0.06]
[1755614377371,44.32,180.02,179.97,0.06]
[1755614377551,17.31850484,180.01,179.97,0.06]
[1755614377735,0.66,180.01,179.97,17.37850484]
[1755614377937,17.31850484,180.01,179.97,0.06]
[1755614378136,0.66,180.0,179.97,0.06]
[1755614378368,17.97850484,180.0,179.97,0.06]
[1755614378546,0.66,179.99,179.97,0.06]
[1755614378869,17.31850484,179.98,179.97,0.06]
[1755614379070,62.23850484,179.98,179.97,0.06]
[1755614379571,88.23850484,179.98,179.97,0.06]
[1755614379742,88.23850484,179.98,179.95,0.06]
[1755614379941,17.31850484,179.96,179.95,0.06]
[1755614380252,30.91409885,179.96,179.95,0.06]
[1755614380436,39.59559401,179.93,179.92,0.06]
[1755614380633,101.17409885,179.93,179.92,0.06]
[1755614380947,101.83409885,179.93,179.92,0.06]
[1755614381146,44.92,179.93,179.92,0.06]
[1755614381355,44.26,179.93,179.92,0.06]
[1755614382481,44.26,179.93,179.92,17.37850484]
[1755614383266,44.26,179.93,179.92,0.06]
[1755614383474,44.26,179.93,179.92,17.37850484]
[1755614383760,44.26,179.93,179.92,0.06]
[1755614384174,44.26,179.93,179.92,17.37850484]
[1755614384379,17.97850484,180.0,179.92,18.05850484]
[1755614384577,44.24,179.99,179.95,17.31850484]
[1755614384768,44.9,179.99,179.92,0.74]
[1755614385097,44.9,179.99,179.94,17.31850484]
[1755614385790,17.31850484,179.97,179.92,0.06]
[1755614386084,17.97850484,179.98,179.93,17.31850484]
[1755614386252,44.24,179.99,179.95,17.31850484]
[1755614386447,44.24,179.99,179.96,17.31850484]
[1755614386679,44.24,179.99,179.95,17.31850484]
[1755614386680,44.9,179.99,179.95,17.31850484]
[1755614386880,44.9,179.99,179.92,0.06]
[1755614386881,17.97850484,179.98,179.92,17.37850484]
[1755614387082,17.97850484,179.98,179.93,17.31850484]
[1755614387257,0.66,179.97,179.93,17.31850484]
[1755614387588,44.24,179.99,179.95,17.31850484]
[1755614387761,44.9,179.99,179.94,17.31850484]
[1755614388077,0.66,179.98,179.94,17.31850484]
[1755614388382,0.66,179.98,179.92,0.06]
[1755614388383,17.31850484,180.01,179.95,17.31850484]
[1755614388585,44.22,179.99,179.94,17.31850484]
[1755614388772,17.31850484,179.97,179.92,0.06]
[1755614388978,61.53850484,179.99,179.94,17.31850484]
[1755614389177,44.22,179.99,179.95,17.31850484]
[1755614389382,44.22,179.99,179.98,17.31850484]
[1755614389557,44.22,179.99,179.95,0.68]
[1755614389558,44.22,179.99,179.97,17.31850484]
[1755614389759,17.31850484,180.03,179.98,17.31850484]
[1755614389959,44.2,180.01,179.98,17.31850484]
[1755614390188,44.2,180.01,179.97,17.31850484]
[1755614390490,19.25272685,180.07,179.97,17.31850484]
[1755614390491,0.66,180.06,179.99,17.31850484]
[1755614390701,44.2,180.05,180.01,17.31850484]
[1755614390860,44.2,180.05,179.99,0.68]
[1755614391057,44.2,180.05,180.01,17.31850484]
[1755614391872,17.31850484,180.02,179.97,17.31850484]
[1755614392109,44.18,180.01,179.97,17.31850484]
[1755614392462,61.49850484,180.01,179.96,17.31850484]
[1755614392666,0.03,179.99,179.95,17.31850484]
[1755614392967,0.69,179.99,179.95,17.31850484]
[1755614393165,0.03,179.99,179.96,17.31850484]
[1755614393386,0.03,179.99,179.98,17.31850484]
[1755614393772,0.03,179.99,179.97,17.31850484]
[1755614393980,0.03,179.99,179.96,17.31850484]
[1755614394181,0.03,179.99,179.97,17.31850484]
[1755614394374,0.03,179.99,179.96,17.31850484]
[1755614394570,0.03,179.99,179.97,17.31850484]
[1755614394779,0.69,179.99,179.94,0.06]
[1755614394988,0.69,179.99,179.95,17.31850484]
[1755614395370,0.69,179.99,179.94,0.06]
[1755614395568,0.69,179.99,179.95,17.31850484]
[1755614396365,0.69,179.99,179.95,11.02163649]
[1755614396961,0.03,179.99,179.95,11.02163649]
[1755614398312,0.03,179.99,179.97,11.02163649]
[1755614398603,0.03,179.99,179.98,11.02163649]
[1755614398812,0.03,179.99,179.96,11.02163649]
[1755614398969,0.03,179.99,179.95,11.02163649]
[1755614399289,0.03,179.99,179.94,0.74]
[1755614399290,0.03,179.99,179.97,11.02163649]
[1755614399667,0.03,179.99,179.96,0.68]
[1755614400166,0.03,179.99,179.96,11.02163649]
[1755614400367,0.03,179.99,179.98,11.02163649]
[1755614400681,0.03,179.99,179.98,11.70163649]
[1755614401207,0.03,180.03,180.0,26.0]
[1755614401492,0.03,180.03,180.02,11.02163649]
[1755614402204,0.03,180.03,179.99,0.68]
[1755614402364,0.03,180.03,180.02,11.02163649]
[1755614402768,0.03,180.03,180.02,11.70163649]
[1755614403070,0.03,180.03,180.01,11.02163649]
[1755614403501,0.03,180.03,179.97,26.0]
[1755614403502,0.03,180.03,180.0,11.02163649]
[1755614403707,0.03,180.03,180.01,11.02163649]
[1755614404002,0.72,180.03,179.99,11.02163649]
[1755614404306,0.72,180.03,179.95,0.72]
[1755614404492,11.02163649,180.02,179.95,0.72]
[1755614404801,11.02163649,179.99,179.94,0.06]
[1755614405003,0.69,179.99,179.94,11.08163649]
[1755614405172,0.69,180.01,179.94,0.06]
[1755614405512,11.02163649,179.96,179.94,0.06]
[1755614405794,0.69,179.95,179.94,0.06]
[1755614407476,11.71163649,179.95,179.94,0.06]
[1755614407814,25.3072305,179.95,179.94,0.06]
[1755614407981,28.91218097,179.95,179.94,0.06]
[1755614409223,24.6172305,179.93,179.92,0.06]
[1755614409386,13.59559401,179.91,179.9,0.06]
[1755614409583,72.26218097,179.91,179.9,0.06]
[1755614409800,72.95218097,179.91,179.9,0.06]
[1755614410591,4.29495047,179.91,179.9,0.06]
[1755614410791,81.75163649,179.91,179.9,0.06]
[1755614411403,95.3472305,179.91,179.9,0.06]
[1755614411605,95.3472305,179.91,179.88,0.06]
[1755614411606,24.6172305,179.89,179.88,0.06]
[1755614411813,28.21695627,179.89,179.88,0.06]
[1755614412113,28.90695627,179.89,179.88,0.06]
[1755614414199,70.04,179.91,179.88,0.06]
[1755614414400,11.02163649,179.89,179.88,0.06]
[1755614415206,11.71163649,179.89,179.88,0.06]
[1755614416785,28.89563927,179.89,179.88,0.06]
[1755614417181,39.59559401,179.87,179.84,0.06]
[1755614417507,13.59559401,179.86,179.84,0.06]
[1755614417687,11.02163649,179.77,179.74,0.72]
[1755614418010,44.0,179.76,179.75,0.72]
[1755614418205,44.0,179.78,179.75,11.74163649]
[1755614418383,44.0,179.78,179.76,0.72]
[1755614418604,44.0,179.78,179.77,0.72]
[1755614419200,55.02163649,179.78,179.74,0.72]
[1755614419414,44.0,179.78,179.75,11.74163649]
[1755614419733,44.0,179.78,179.68,31.56544968]
[1755614419734,44.0,179.8,179.77,11.02163649]
[1755614419930,44.0,179.8,179.76,11.02163649]
[1755614420117,55.02163649,179.8,179.77,0.72]
[1755614420503,44.0,179.8,179.78,0.72]
[1755614420938,55.02163649,179.8,179.75,0.72]
[1755614421129,11.02163649,179.79,179.76,0.72]
[1755614421303,44.0,179.8,179.77,0.72]
[1755614421504,44.0,179.8,179.78,0.72]
[1755614422006,44.0,179.8,179.79,0.72]
[1755614422636,44.0,179.8,179.76,11.02163649]
[1755614422802,44.0,179.8,179.7,26.0]
[1755614422803,55.02163649,179.8,179.75,11.02163649]
[1755614423007,44.0,179.8,179.77,0.72]
[1755614423244,44.0,179.8,179.76,11.02163649]
[1755614423445,55.02163649,179.8,179.74,11.74163649]
[1755614423623,44.0,179.8,179.76,11.02163649]
[1755614423935,0.69,179.89,179.79,11.02163649]
[1755614424126,11.02163649,179.87,179.82,11.02163649]
[1755614424308,11.02163649,179.85,179.8,11.02163649]
[1755614424633,11.02163649,179.81,179.74,0.72]
[1755614424812,11.02163649,179.79,179.74,0.72]
[1755614425018,43.96,179.78,179.74,0.72]
[1755614425221,54.98163649,179.78,179.74,0.72]
[1755614425406,11.02163649,179.77,179.67,5.61000884]
[1755614425609,11.02163649,179.77,179.71,0.72]
[1755614425808,11.02163649,179.77,179.72,11.02163649]
[1755614426003,11.02163649,179.77,179.72,11.74163649]
[1755614426236,43.96,179.78,179.73,11.74163649]
[1755614426534,43.96,179.78,179.74,11.74163649]
[1755614426735,11.02163649,179.77,179.72,11.02163649]
[1755614426912,54.98163649,179.78,179.73,11.74163649]
[1755614427306,43.96,179.78,179.74,0.72]
[1755614427505,11.02163649,179.76,179.71,11.74163649]
[1755614427730,0.69,179.77,179.71,11.74163649]
[1755614427917,11.71163649,179.77,179.72,11.02163649]
[1755614428117,11.02163649,179.76,179.71,11.74163649]
[1755614428317,11.02163649,179.77,179.72,11.74163649]
[1755614428513,43.96,179.78,179.73,11.74163649]
[1755614428514,54.98163649,179.78,179.73,11.74163649]
[1755614428902,11.71163649,179.77,179.72,11.02163649]
[1755614429101,11.71163649,179.77,179.68,0.06]
[1755614429102,11.02163649,179.73,179.68,11.08163649]
[1755614429340,43.94,179.72,179.69,0.72]
[1755614429521,43.94,179.72,179.68,11.08163649]
[1755614429723,55.65163649,179.72,179.68,0.06]
[1755614431319,44.63,179.72,179.68,0.06]
[1755614431504,43.94,179.72,179.68,0.06]
[1755614431705,55.65163649,179.72,179.68,0.06]
[1755614431933,54.96163649,179.72,179.68,0.06]
[1755614432116,55.65163649,179.72,179.68,0.06]
[1755614432311,11.02163649,179.71,179.68,0.06]
[1755614432551,0.69,179.71,179.68,0.06]
[1755614432839,11.02163649,179.69,179.68,0.06]
[1755614433036,54.92163649,179.69,179.68,0.06]
[1755614433241,55.64163649,179.69,179.68,0.06]
[1755614433641,43.9,179.69,179.68,0.06]
[1755614434151,55.64163649,179.69,179.68,0.06]
[1755614434375,26.0,179.73,179.68,0.06]
[1755614434678,40.1,179.81,179.72,11.02163649]
[1755614434968,11.02163649,179.76,179.71,11.02163649]
[1755614435131,55.64163649,179.75,179.7,11.02163649]
[1755614435457,44.62,179.75,179.7,11.02163649]
[1755614435629,0.72,179.74,179.68,0.06]
[1755614436027,11.02163649,179.72,179.68,0.06]
[1755614436259,43.9,179.71,179.68,0.06]
[1755614436626,44.62,179.71,179.68,0.06]
[1755614436827,11.02163649,179.7,179.68,0.06]
[1755614437123,43.9,179.71,179.68,0.06]
[1755614437656,43.88,179.7,179.68,0.06]
[1755614439058,43.88,179.7,179.68,11.08163649]
[1755614439234,43.88,179.71,179.69,11.73163649]
[1755614439560,40.1,179.81,179.7,11.73163649]
[1755614439857,43.88,179.79,179.71,14.30559401]
[1755614440054,43.88,179.79,179.72,6.27421099]
[1755614440837,43.88,179.79,179.76,11.02163649]
[1755614441361,43.86,179.79,179.77,11.02163649]
[1755614441564,0.72,179.86,179.78,11.73163649]
[1755614441858,11.02163649,179.83,179.78,11.02163649]
[1755614442063,0.72,179.82,179.77,11.02163649]
[1755614442241,43.86,179.81,179.78,11.02163649]
[1755614442628,11.74163649,179.8,179.72,0.71]
[1755614442852,11.74163649,179.8,179.74,11.02163649]
[1755614443034,11.02163649,179.78,179.69,32.27484771]
[1755614443240,11.02163649,179.78,179.73,11.02163649]
[1755614443468,55.58163649,179.77,179.72,11.02163649]
[1755614443632,44.56,179.77,179.72,11.02163649]
[1755614444065,0.72,179.8,179.76,11.02163649]
[1755614444244,43.84,179.8,179.73,0.71]
[1755614444647,11.02163649,179.78,179.73,11.02163649]
[1755614444831,11.02163649,179.78,179.72,11.02163649]
[1755614444832,0.72,179.77,179.72,11.02163649]
[1755614445035,0.72,179.77,179.73,11.02163649]
[1755614445331,0.72,179.83,179.74,0.71]
[1755614445658,43.82,179.8,179.77,11.02163649]
[1755614445862,43.82,179.8,179.79,11.02163649]
[1755614446075,43.82,179.83,179.77,6.27265551]
[1755614446272,43.82,179.83,179.79,11.02163649]
[1755614446577,43.82,179.83,179.77,5.56264883]
[1755614446731,43.82,179.83,179.81,11.02163649]
[1755614446931,43.82,179.83,179.76,6.272899]
[1755614447131,54.84163649,179.83,179.78,11.02163649]
[1755614447332,0.72,179.82,179.78,11.02163649]
[1755614447532,0.72,179.81,179.77,11.02163649]
[1755614447831,54.84163649,179.83,179.7,39.91167557]
[1755614447832,0.72,179.8,179.7,5.56483027]
[1755614448035,11.02163649,179.79,179.73,11.02163649]
[1755614448256,11.02163649,179.79,179.74,11.02163649]
[1755614448585,11.02163649,179.76,179.71,11.02163649]
[1755614448760,43.8,179.79,179.69,11.02163649]
[1755614448761,11.74163649,179.75,179.69,11.02163649]
[1755614449084,11.02163649,179.72,179.68,0.06]
[1755614449454,11.74163649,179.72,179.68,0.06]
[1755614449646,0.72,179.71,179.68,0.06]
[1755614449845,0.72,179.7,179.68,0.06]
[1755614450248,44.52,179.69,179.68,0.06]
[1755614450762,55.54163649,179.69,179.68,0.06]
[1755614451344,44.52,179.69,179.68,0.06]
[1755614451571,81.54163649,179.69,179.68,0.06]
[1755614453242,74.12370793,179.69,179.68,0.06]